[Event "*** SCC Grand Prix: Titled Tuesday Blitz"]
[Site "Chess.com"]
[Date "2020.08.25"]
[Round "1"]
[White "freshfoodcompany"]
[Black "emperor87"]
[Result "1-0"]
[WhiteElo "2364"]
[BlackElo "2662"]
[TimeControl "180+1"]
[EndTime "10:07:35 PDT"]
[Termination "freshfoodcompany won by resignation"]

1. d4 {[%clk 0:03:00.9]} 1... d5 {[%clk 0:02:59.3]} 2. c4 {[%clk 0:03:00.8]}
2... e6 {[%clk 0:02:58.8]} 3. Nc3 {[%clk 0:03:00.9]} 3... Nf6 {[%clk 0:02:59]}
4. cxd5 {[%clk 0:03:00.9]} 4... exd5 {[%clk 0:02:58.2]} 5. Bg5 {[%clk
0:03:00.8]} 5... Be7 {[%clk 0:02:58.1]} 6. e3 {[%clk 0:03:00.9]} 6... c6 {[%clk
0:02:57.8]} 7. Bd3 {[%clk 0:03:00.8]} 7... Nbd7 {[%clk 0:02:57.5]} 8. Nge2
{[%clk 0:03:00.9]} 8... Nf8 {[%clk 0:02:53]} 9. O-O {[%clk 0:02:59.6]} 9... Ne6
{[%clk 0:02:53.1]} 10. Bh4 {[%clk 0:02:58.6]} 10... O-O {[%clk 0:02:52.5]} 11.
Qc2 {[%clk 0:02:57.8]} 11... g6 {[%clk 0:02:51.9]} 12. f3 {[%clk 0:02:56]} 12...
Ng7 {[%clk 0:02:51.7]} 13. Rae1 {[%clk 0:02:54.2]} 13... Re8 {[%clk 0:02:49.8]}
14. Nc1 {[%clk 0:02:50.9]} 14... b6 {[%clk 0:02:47.9]} 15. Bf2 {[%clk 0:02:49]}
15... c5 {[%clk 0:02:47.2]} 16. Rd1 {[%clk 0:02:42.4]} 16... Qc7 {[%clk
0:02:36.9]} 17. dxc5 {[%clk 0:02:35.3]} 17... bxc5 {[%clk 0:02:35.8]} 18. Rfe1
{[%clk 0:02:32.8]} 18... Be6 {[%clk 0:02:34]} 19. Bf1 {[%clk 0:02:25.3]} 19...
Rac8 {[%clk 0:02:28.5]} 20. e4 {[%clk 0:02:19.4]} 20... d4 {[%clk 0:02:25.6]}
21. Nb5 {[%clk 0:02:17.3]} 21... Qb7 {[%clk 0:02:18.1]} 22. Na3 {[%clk
0:02:13.3]} 22... Red8 {[%clk 0:02:08.3]} 23. Nc4 {[%clk 0:02:11.3]} 23... Nfh5
{[%clk 0:02:07.7]} 24. b3 {[%clk 0:02:08.9]} 24... Ne8 {[%clk 0:02:05.4]} 25.
Nd3 {[%clk 0:02:01]} 25... Qb8 {[%clk 0:02:05.1]} 26. g4 {[%clk 0:01:48.5]}
26... Nhg7 {[%clk 0:02:03.4]} 27. Bg3 {[%clk 0:01:47.3]} 27... Qb7 {[%clk
0:02:02.8]} 28. Na5 {[%clk 0:01:42.2]} 28... Qb6 {[%clk 0:01:58.2]} 29. Nc4
{[%clk 0:01:39.9]} 29... Qb7 {[%clk 0:01:56.4]} 30. Na5 {[%clk 0:01:38.3]} 30...
Qa8 {[%clk 0:01:53.4]} 31. Nf4 {[%clk 0:01:30.4]} 31... Bd6 {[%clk 0:01:50.5]}
32. Bd3 {[%clk 0:01:23.2]} 32... Qb8 {[%clk 0:01:40.2]} 33. Nxe6 {[%clk
0:01:13]} 33... Nxe6 {[%clk 0:01:35]} 34. e5 {[%clk 0:01:11.2]} 34... Be7 {[%clk
0:01:33.7]} 35. Be4 {[%clk 0:01:09]} 35... Bg5 {[%clk 0:01:27.5]} 36. Nc6 {[%clk
0:01:06.5]} 36... Rxc6 {[%clk 0:01:27.6]} 37. Bxc6 {[%clk 0:01:05.3]} 37... Be3+
{[%clk 0:01:27.7]} 38. Kg2 {[%clk 0:00:59.4]} 38... N8c7 {[%clk 0:01:25.9]} 39.
Be4 {[%clk 0:00:56.4]} 39... Nd5 {[%clk 0:01:25]} 40. Bxd5 {[%clk 0:00:54.8]}
40... Rxd5 {[%clk 0:01:23.2]} 41. Rxe3 {[%clk 0:00:55]} 41... Qb7 {[%clk
0:01:19.3]} 42. Re4 {[%clk 0:00:53.8]} 42... a6 {[%clk 0:01:19.1]} 43. Qc4
{[%clk 0:00:52.7]} 43... Qc6 {[%clk 0:01:18.8]} 44. b4 {[%clk 0:00:50.5]} 44...
Qb6 {[%clk 0:01:17.7]} 45. a3 {[%clk 0:00:42.8]} 45... Qc6 {[%clk 0:01:15.8]}
46. Bf2 {[%clk 0:00:41.6]} 46... g5 {[%clk 0:01:14.2]} 47. Bxd4 {[%clk
0:00:39.1]} 47... Qa4 {[%clk 0:01:12.8]} 48. Qxd5 {[%clk 0:00:29]} 48... Qxd1
{[%clk 0:01:12.7]} 49. Qa8+ {[%clk 0:00:28.2]} 49... Kg7 {[%clk 0:01:13]} 50.
Bf2 {[%clk 0:00:25.4]} 50... cxb4 {[%clk 0:01:12.1]} 51. axb4 {[%clk 0:00:24.9]}
51... h5 {[%clk 0:01:12.4]} 52. gxh5 {[%clk 0:00:24]} 52... Qd7 {[%clk
0:01:09.8]} 53. h6+ {[%clk 0:00:23.5]} 53... Kxh6 {[%clk 0:01:09.6]} 54. Qh8+
{[%clk 0:00:22.5]} 54... Kg6 {[%clk 0:01:10]} 55. h4 {[%clk 0:00:21.3]} 55...
Nf4+ {[%clk 0:01:02]} 56. Rxf4 {[%clk 0:00:20.9]} 56... gxf4 {[%clk 0:01:02.9]}
57. h5+ {[%clk 0:00:19.9]} 57... Kg5 {[%clk 0:01:03.4]} 58. Qf6+ {[%clk
0:00:15.8]} 58... Kxh5 {[%clk 0:01:03.5]} 59. Qh4+ {[%clk 0:00:16]} 59... Kg6
{[%clk 0:01:03.6]} 60. Qg4+ {[%clk 0:00:16.5]} 60... Qxg4+ {[%clk 0:01:02.8]}
61. fxg4 {[%clk 0:00:17.4]} 61... Kg5 {[%clk 0:01:03.5]} 62. Kf3 {[%clk
0:00:17.8]} 62... f5 {[%clk 0:01:02.6]} 63. gxf5 {[%clk 0:00:18]} 63... Kxf5
{[%clk 0:01:02.8]} 64. Bd4 {[%clk 0:00:18.5]} 64... Ke6 {[%clk 0:01:03.2]} 65.
Kxf4 {[%clk 0:00:18.4]} 65... Kd5 {[%clk 0:01:04.1]} 66. Bc5 {[%clk 0:00:18.1]}
66... Ke6 {[%clk 0:01:04.2]} 67. Ke4 {[%clk 0:00:18.3]} 67... Kd7 {[%clk
0:01:04.6]} 68. Kf5 {[%clk 0:00:19.2]} 68... Kc7 {[%clk 0:01:05.5]} 69. e6
{[%clk 0:00:19.7]} 69... Kc6 {[%clk 0:01:05.8]} 70. Kf6 {[%clk 0:00:20.6]} 70...
Kd5 {[%clk 0:01:06.7]} 71. e7 {[%clk 0:00:21]} 71... Kc4 {[%clk 0:01:07.6]} 72.
e8=Q {[%clk 0:00:20.9]} 1-0

[Event "*** SCC Grand Prix: Titled Tuesday Blitz"]
[Site "Chess.com"]
[Date "2020.08.25"]
[Round "1"]
[White "Karina_Ivanova"]
[Black "QuintilianoR"]
[Result "0-1"]
[WhiteElo "2276"]
[BlackElo "2609"]
[TimeControl "180+1"]
[EndTime "10:07:37 PDT"]
[Termination "QuintilianoR won by resignation"]

1. d4 {[%clk 0:02:59.7]} 1... d5 {[%clk 0:02:57.8]} 2. Nf3 {[%clk 0:02:59.1]}
2... Nf6 {[%clk 0:02:56.8]} 3. g3 {[%clk 0:02:59]} 3... e6 {[%clk 0:02:55.9]} 4.
Bg2 {[%clk 0:02:58.9]} 4... Be7 {[%clk 0:02:56.4]} 5. O-O {[%clk 0:02:58.7]}
5... O-O {[%clk 0:02:56.8]} 6. c4 {[%clk 0:02:58.4]} 6... dxc4 {[%clk
0:02:57.2]} 7. Qc2 {[%clk 0:02:55.9]} 7... a6 {[%clk 0:02:57]} 8. a4 {[%clk
0:02:54.8]} 8... c5 {[%clk 0:02:56.5]} 9. Qxc4 {[%clk 0:02:53.8]} 9... cxd4
{[%clk 0:02:54.9]} 10. Qxd4 {[%clk 0:02:53.3]} 10... Nc6 {[%clk 0:02:54.4]} 11.
Qxd8 {[%clk 0:02:52]} 11... Rxd8 {[%clk 0:02:55.3]} 12. Nc3 {[%clk 0:02:52.7]}
12... Bd7 {[%clk 0:02:54.7]} 13. Bf4 {[%clk 0:02:50.8]} 13... Rac8 {[%clk
0:02:35.8]} 14. Rfd1 {[%clk 0:02:45.4]} 14... Na5 {[%clk 0:02:31.7]} 15. Ne5
{[%clk 0:02:40.3]} 15... Be8 {[%clk 0:02:32.2]} 16. Be3 {[%clk 0:02:18.2]} 16...
Nd7 {[%clk 0:01:44.4]} 17. Nxd7 {[%clk 0:02:13.5]} 17... Rxd7 {[%clk 0:01:45.3]}
18. Rxd7 {[%clk 0:02:08.9]} 18... Bxd7 {[%clk 0:01:46.2]} 19. Rd1 {[%clk
0:02:00.1]} 19... Be8 {[%clk 0:01:45.5]} 20. Ne4 {[%clk 0:01:39.8]} 20... Bxa4
{[%clk 0:01:31.6]} 21. Ra1 {[%clk 0:01:39.1]} 21... b5 {[%clk 0:01:31.2]} 22.
Nc3 {[%clk 0:01:33.7]} 22... Nc4 {[%clk 0:01:09.8]} 23. Nxa4 {[%clk 0:01:21.4]}
23... bxa4 {[%clk 0:01:10.7]} 24. Rc1 {[%clk 0:01:11]} 24... a3 {[%clk
0:00:45.4]} 25. bxa3 {[%clk 0:01:00.6]} 25... Bxa3 {[%clk 0:00:46.3]} 26. Rc2
{[%clk 0:01:00.6]} 26... Nd6 {[%clk 0:00:36.1]} 27. Rxc8+ {[%clk 0:00:59.6]}
27... Nxc8 {[%clk 0:00:37]} 28. Bb7 {[%clk 0:01:00.3]} 28... Ne7 {[%clk
0:00:36.1]} 29. Bxa6 {[%clk 0:01:00.2]} 29... Nd5 {[%clk 0:00:36.1]} 30. Bd4
{[%clk 0:00:59.6]} 30... Be7 {[%clk 0:00:35.5]} 31. Kf1 {[%clk 0:00:57.6]} 31...
h6 {[%clk 0:00:32.9]} 32. e4 {[%clk 0:00:56]} 32... Nb4 {[%clk 0:00:32]} 33. Bc4
{[%clk 0:00:54.9]} 33... Nc6 {[%clk 0:00:31.4]} 34. Bc3 {[%clk 0:00:54.8]} 34...
Bb4 {[%clk 0:00:30.6]} 35. Bxb4 {[%clk 0:00:53.1]} 35... Nxb4 {[%clk 0:00:31.5]}
36. e5 {[%clk 0:00:50.9]} 36... g5 {[%clk 0:00:28.9]} 37. f4 {[%clk 0:00:49]}
37... gxf4 {[%clk 0:00:28.3]} 38. gxf4 {[%clk 0:00:49.1]} 38... Kg7 {[%clk
0:00:28.7]} 39. Kf2 {[%clk 0:00:48.7]} 39... Nc6 {[%clk 0:00:28.4]} 40. Bd3
{[%clk 0:00:46]} 40... Ne7 {[%clk 0:00:27.6]} 41. Kf3 {[%clk 0:00:44]} 41... Nc6
{[%clk 0:00:23.3]} 42. Be4 {[%clk 0:00:43.4]} 42... Ne7 {[%clk 0:00:21.6]} 43.
Ke3 {[%clk 0:00:42]} 43... Nc8 {[%clk 0:00:19.1]} 44. Kd4 {[%clk 0:00:41.4]}
44... Ne7 {[%clk 0:00:19.2]} 45. Kc5 {[%clk 0:00:40.4]} 45... Ng6 {[%clk
0:00:18.4]} 46. Bxg6 {[%clk 0:00:39.2]} 46... Kxg6 {[%clk 0:00:18.5]} 47. Kd4
{[%clk 0:00:31.6]} 47... Kf5 {[%clk 0:00:18.5]} 48. Ke3 {[%clk 0:00:31.5]} 48...
Kg4 {[%clk 0:00:18.9]} 49. Ke4 {[%clk 0:00:31.7]} 49... h5 {[%clk 0:00:18.4]}
50. Ke3 {[%clk 0:00:25.3]} 50... Kh3 {[%clk 0:00:18.1]} 51. Ke4 {[%clk
0:00:25.4]} 51... Kxh2 {[%clk 0:00:17.6]} 52. f5 {[%clk 0:00:26.3]} 52... Kg3
{[%clk 0:00:17.7]} 53. fxe6 {[%clk 0:00:25.2]} 53... fxe6 {[%clk 0:00:18.6]} 0-1

[Event "*** SCC Grand Prix: Titled Tuesday Blitz"]
[Site "Chess.com"]
[Date "2020.08.25"]
[Round "1"]
[White "Semen_Khanin"]
[Black "MashaFromRussia"]
[Result "1-0"]
[WhiteElo "2775"]
[BlackElo "2403"]
[TimeControl "180+1"]
[EndTime "10:07:41 PDT"]
[Termination "Semen_Khanin won by resignation"]

1. e4 {[%clk 0:03:00.9]} 1... c5 {[%clk 0:02:58.9]} 2. Nf3 {[%clk 0:03:00.5]}
2... Nc6 {[%clk 0:02:59]} 3. Bb5 {[%clk 0:02:59.7]} 3... d6 {[%clk 0:02:58.6]}
4. O-O {[%clk 0:02:58.4]} 4... Bd7 {[%clk 0:02:58.4]} 5. c4 {[%clk 0:02:55.8]}
5... Nf6 {[%clk 0:02:57.6]} 6. Nc3 {[%clk 0:02:55.5]} 6... e5 {[%clk 0:02:56.6]}
7. d3 {[%clk 0:02:54]} 7... Be7 {[%clk 0:02:56.3]} 8. a3 {[%clk 0:02:50]} 8...
O-O {[%clk 0:02:53.6]} 9. h3 {[%clk 0:02:49.9]} 9... Ne8 {[%clk 0:02:43.5]} 10.
Nd5 {[%clk 0:02:47.8]} 10... f5 {[%clk 0:02:37.9]} 11. exf5 {[%clk 0:02:27.9]}
11... Bxf5 {[%clk 0:02:34.7]} 12. Be3 {[%clk 0:02:19.6]} 12... Nf6 {[%clk
0:02:21.4]} 13. b4 {[%clk 0:02:04.9]} 13... Nxd5 {[%clk 0:01:49.4]} 14. cxd5
{[%clk 0:02:04.8]} 14... Nd4 {[%clk 0:01:49.3]} 15. Bxd4 {[%clk 0:02:04.4]}
15... exd4 {[%clk 0:01:49]} 16. Nd2 {[%clk 0:01:33.1]} 16... a6 {[%clk
0:01:43.2]} 17. Bc4 {[%clk 0:01:31.3]} 17... b5 {[%clk 0:01:42.7]} 18. Bb3
{[%clk 0:01:30.6]} 18... Bxd3 {[%clk 0:01:41.8]} 19. bxc5 {[%clk 0:01:25.6]}
19... Bxf1 {[%clk 0:01:36.5]} 20. Qxf1 {[%clk 0:01:23.5]} 20... Bh4 {[%clk
0:01:29.4]} 21. g3 {[%clk 0:00:22.1]} 21... Bxg3 {[%clk 0:00:51.8]} 22. Ne4
{[%clk 0:00:22.3]} 22... Be5 {[%clk 0:00:41.6]} 23. c6 {[%clk 0:00:18.9]} 23...
Qh4 {[%clk 0:00:39.2]} 24. Qg2 {[%clk 0:00:19.3]} 24... Rf7 {[%clk 0:00:25.9]}
25. Rd1 {[%clk 0:00:19.2]} 25... Raf8 {[%clk 0:00:26.1]} 26. Rd3 {[%clk
0:00:19.8]} 26... Qf4 {[%clk 0:00:21.9]} 27. Bd1 {[%clk 0:00:19.3]} 27... Qc1
{[%clk 0:00:21.1]} 28. Qg4 {[%clk 0:00:15.3]} 28... a5 {[%clk 0:00:18.7]} 29. h4
{[%clk 0:00:13]} 29... b4 {[%clk 0:00:18.8]} 30. axb4 {[%clk 0:00:13.4]} 30...
axb4 {[%clk 0:00:19.7]} 31. h5 {[%clk 0:00:12.7]} 31... h6 {[%clk 0:00:20]} 32.
Qe2 {[%clk 0:00:10.1]} 32... Rf4 {[%clk 0:00:18.9]} 33. Kg2 {[%clk 0:00:08.9]}
33... R8f5 {[%clk 0:00:17.8]} 34. Ng3 {[%clk 0:00:08.9]} 34... Rg5 {[%clk
0:00:17.6]} 35. Rd2 {[%clk 0:00:08.8]} 35... Rf7 {[%clk 0:00:15.4]} 36. Rc2
{[%clk 0:00:08.9]} 36... Qf4 {[%clk 0:00:11.9]} 37. Qd3 {[%clk 0:00:09.1]} 37...
Qf6 {[%clk 0:00:04.9]} 38. c7 {[%clk 0:00:07.6]} 38... Rf8 {[%clk 0:00:04.2]}
39. c8=Q {[%clk 0:00:07.6]} 39... Rxg3+ {[%clk 0:00:04.6]} 40. fxg3 {[%clk
0:00:07]} 1-0

[Event "*** SCC Grand Prix: Titled Tuesday Blitz"]
[Site "Chess.com"]
[Date "2020.08.25"]
[Round "1"]
[White "elegant285"]
[Black "attack2mateU"]
[Result "0-1"]
[WhiteElo "2359"]
[BlackElo "2693"]
[TimeControl "180+1"]
[EndTime "10:07:41 PDT"]
[Termination "attack2mateU won by resignation"]

1. d4 {[%clk 0:03:00.9]} 1... Nf6 {[%clk 0:02:59.8]} 2. c4 {[%clk 0:03:00.3]}
2... g6 {[%clk 0:03:00]} 3. Nc3 {[%clk 0:03:00]} 3... d5 {[%clk 0:03:00.7]} 4.
cxd5 {[%clk 0:02:59.8]} 4... Nxd5 {[%clk 0:03:01.6]} 5. e4 {[%clk 0:02:59.9]}
5... Nxc3 {[%clk 0:03:02.2]} 6. bxc3 {[%clk 0:03:00.8]} 6... Bg7 {[%clk
0:03:02.6]} 7. Be3 {[%clk 0:03:01.4]} 7... c5 {[%clk 0:03:02.8]} 8. Rc1 {[%clk
0:02:57.8]} 8... Qa5 {[%clk 0:03:02.2]} 9. Qd2 {[%clk 0:02:57.5]} 9... O-O
{[%clk 0:03:02.3]} 10. Nf3 {[%clk 0:02:56.8]} 10... Rd8 {[%clk 0:03:01.8]} 11.
d5 {[%clk 0:02:56.2]} 11... e6 {[%clk 0:03:01.5]} 12. c4 {[%clk 0:02:55.8]}
12... Qxd2+ {[%clk 0:02:55.7]} 13. Nxd2 {[%clk 0:02:54.6]} 13... b6 {[%clk
0:02:54]} 14. Be2 {[%clk 0:02:53.5]} 14... Na6 {[%clk 0:02:50.5]} 15. O-O {[%clk
0:02:51.1]} 15... Nb4 {[%clk 0:02:50.6]} 16. a3 {[%clk 0:02:49.4]} 16... Na2
{[%clk 0:02:50.5]} 17. Rc2 {[%clk 0:02:45.9]} 17... Nc3 {[%clk 0:02:50.4]} 18.
Bf3 {[%clk 0:02:45.2]} 18... exd5 {[%clk 0:02:45.9]} 19. exd5 {[%clk 0:02:43.2]}
19... Bf5 {[%clk 0:02:45.5]} 20. Rcc1 {[%clk 0:02:36.1]} 20... Bd3 {[%clk
0:02:09.6]} 21. Rfe1 {[%clk 0:02:35.5]} 21... Na2 {[%clk 0:02:09.6]} 22. Ra1
{[%clk 0:02:27.8]} 22... Bxa1 {[%clk 0:02:08.3]} 23. Rxa1 {[%clk 0:02:28.7]}
23... Nc3 {[%clk 0:02:08.5]} 24. Rc1 {[%clk 0:02:28.4]} 24... Na4 {[%clk
0:01:39.2]} 25. Bg5 {[%clk 0:02:28]} 25... Re8 {[%clk 0:01:38.7]} 26. d6 {[%clk
0:02:26.1]} 26... Rad8 {[%clk 0:01:09.4]} 27. Bc6 {[%clk 0:02:13.4]} 27... Nc3
{[%clk 0:00:52.9]} 28. Bxe8 {[%clk 0:02:12.7]} 28... Ne2+ {[%clk 0:00:52.2]} 29.
Kh1 {[%clk 0:02:12.7]} 29... Rxd6 {[%clk 0:00:45.2]} 30. Re1 {[%clk 0:02:07]}
30... Re6 {[%clk 0:00:43.2]} 31. Bb5 {[%clk 0:01:52.1]} 31... Ng3+ {[%clk
0:00:43.2]} 32. hxg3 {[%clk 0:01:52.5]} 32... Rxe1+ {[%clk 0:00:44.1]} 33. Kh2
{[%clk 0:01:53.1]} 33... Ra1 {[%clk 0:00:40.8]} 34. a4 {[%clk 0:01:45.4]} 34...
Bc2 {[%clk 0:00:40.9]} 35. Bf6 {[%clk 0:01:44.1]} 35... Ra2 {[%clk 0:00:40.8]}
36. Nf3 {[%clk 0:01:39.1]} 36... Bxa4 {[%clk 0:00:40.3]} 37. Ne5 {[%clk
0:01:34]} 37... Bxb5 {[%clk 0:00:36.9]} 38. cxb5 {[%clk 0:01:34.9]} 38... Ra5
{[%clk 0:00:35.8]} 39. Nc6 {[%clk 0:01:33.7]} 39... Rxb5 {[%clk 0:00:35.9]} 40.
Nxa7 {[%clk 0:01:34.6]} 40... Rb1 {[%clk 0:00:35.7]} 41. Nc8 {[%clk 0:01:33.2]}
41... c4 {[%clk 0:00:33.2]} 42. Ne7+ {[%clk 0:01:28]} 42... Kf8 {[%clk
0:00:33.4]} 43. Nd5 {[%clk 0:01:28.2]} 43... b5 {[%clk 0:00:32.9]} 44. Be7+
{[%clk 0:01:27.6]} 44... Ke8 {[%clk 0:00:32.4]} 45. Bb4 {[%clk 0:01:25.4]} 45...
Kd7 {[%clk 0:00:21.1]} 46. Ba5 {[%clk 0:01:22.4]} 46... Kc6 {[%clk 0:00:17.5]}
47. Nc3 {[%clk 0:01:17.1]} 47... Rb3 {[%clk 0:00:16.7]} 48. Na2 {[%clk
0:01:14.4]} 48... Ra3 {[%clk 0:00:15.9]} 49. Nb4+ {[%clk 0:01:14.7]} 49... Kc5
{[%clk 0:00:16]} 50. Na6+ {[%clk 0:01:05.1]} 50... Kd4 {[%clk 0:00:12.6]} 51.
Bb6+ {[%clk 0:01:04.1]} 51... Kd3 {[%clk 0:00:09]} 52. Nc5+ {[%clk 0:01:00.8]}
52... Kc2 {[%clk 0:00:08.5]} 53. f4 {[%clk 0:00:55.6]} 53... b4 {[%clk
0:00:08.8]} 54. Ne4 {[%clk 0:00:52.3]} 54... b3 {[%clk 0:00:09]} 55. Bd4 {[%clk
0:00:52.5]} 55... b2 {[%clk 0:00:09.2]} 56. Bxb2 {[%clk 0:00:52.6]} 56... Kxb2
{[%clk 0:00:10.1]} 57. g4 {[%clk 0:00:52.1]} 57... Re3 {[%clk 0:00:10.1]} 58.
Nc5 {[%clk 0:00:50.3]} 58... c3 {[%clk 0:00:08.8]} 59. f5 {[%clk 0:00:50.3]}
59... c2 {[%clk 0:00:08.4]} 60. fxg6 {[%clk 0:00:48.3]} 60... fxg6 {[%clk
0:00:08]} 0-1

[Event "*** SCC Grand Prix: Titled Tuesday Blitz"]
[Site "Chess.com"]
[Date "2020.08.25"]
[Round "1"]
[White "Dr_crypt"]
[Black "DenLaz"]
[Result "0-1"]
[WhiteElo "2378"]
[BlackElo "2716"]
[TimeControl "180+1"]
[EndTime "10:07:42 PDT"]
[Termination "DenLaz won by resignation"]

1. d4 {[%clk 0:02:44.2]} 1... d5 {[%clk 0:02:58.3]} 2. Nf3 {[%clk 0:02:43.6]}
2... Nf6 {[%clk 0:02:55.8]} 3. Bf4 {[%clk 0:02:42.8]} 3... e6 {[%clk 0:02:54.5]}
4. e3 {[%clk 0:02:42.3]} 4... Bd6 {[%clk 0:02:51.5]} 5. Bg3 {[%clk 0:02:42]}
5... c5 {[%clk 0:02:48.3]} 6. c3 {[%clk 0:02:41.7]} 6... Qc7 {[%clk 0:02:47.1]}
7. Nbd2 {[%clk 0:02:39.3]} 7... Nbd7 {[%clk 0:02:41.5]} 8. dxc5 {[%clk
0:02:18.5]} 8... Nxc5 {[%clk 0:02:33.2]} 9. Be2 {[%clk 0:02:15.8]} 9... O-O
{[%clk 0:02:26.8]} 10. Bxd6 {[%clk 0:02:13.8]} 10... Qxd6 {[%clk 0:02:25.6]} 11.
O-O {[%clk 0:02:14.7]} 11... e5 {[%clk 0:02:05.4]} 12. c4 {[%clk 0:02:07.9]}
12... d4 {[%clk 0:01:37.3]} 13. exd4 {[%clk 0:01:51.5]} 13... exd4 {[%clk
0:01:38.2]} 14. b4 {[%clk 0:01:51.5]} 14... Ne6 {[%clk 0:01:28.7]} 15. c5 {[%clk
0:01:48.3]} 15... Qd8 {[%clk 0:01:20.2]} 16. Nb3 {[%clk 0:01:45.4]} 16... Nd5
{[%clk 0:01:19.2]} 17. Qd2 {[%clk 0:01:25.7]} 17... Ndf4 {[%clk 0:01:03.4]} 18.
Rad1 {[%clk 0:01:05.8]} 18... Qf6 {[%clk 0:00:47.1]} 19. Rfe1 {[%clk 0:00:30.8]}
19... Rd8 {[%clk 0:00:28.9]} 20. Bf1 {[%clk 0:00:29.4]} 20... b6 {[%clk
0:00:16.1]} 21. c6 {[%clk 0:00:23.3]} 21... d3 {[%clk 0:00:12.2]} 22. g3 {[%clk
0:00:19.6]} 22... Ng6 {[%clk 0:00:10.3]} 23. Bg2 {[%clk 0:00:18.5]} 23... Ba6
{[%clk 0:00:10.4]} 24. a4 {[%clk 0:00:15.9]} 24... Bc4 {[%clk 0:00:10.3]} 25.
Nc1 {[%clk 0:00:12.1]} 25... Bd5 {[%clk 0:00:10.3]} 26. b5 {[%clk 0:00:11.9]}
26... Bxf3 {[%clk 0:00:09.6]} 27. Bxf3 {[%clk 0:00:12.1]} 27... Qxf3 {[%clk
0:00:10.5]} 28. Nxd3 {[%clk 0:00:10.6]} 28... h6 {[%clk 0:00:09.3]} 29. Qc2
{[%clk 0:00:08.4]} 29... Nd4 {[%clk 0:00:09.1]} 30. Qb2 {[%clk 0:00:06.6]} 30...
Qd5 {[%clk 0:00:08.4]} 31. Nb4 {[%clk 0:00:05.3]} 31... Nf3+ {[%clk 0:00:08.5]}
32. Kf1 {[%clk 0:00:05.6]} 32... Qc4+ {[%clk 0:00:08.1]} 33. Kg2 {[%clk
0:00:05.4]} 33... Nxe1+ {[%clk 0:00:08.4]} 34. Rxe1 {[%clk 0:00:06.3]} 34... Nf8
{[%clk 0:00:07.8]} 35. Na6 {[%clk 0:00:05.6]} 35... Ne6 {[%clk 0:00:07.6]} 36.
c7 {[%clk 0:00:05.9]} 36... Nxc7 {[%clk 0:00:07.2]} 37. Rc1 {[%clk 0:00:06.3]}
37... Qd5+ {[%clk 0:00:07.6]} 38. Kg1 {[%clk 0:00:06.5]} 38... Nxa6 {[%clk
0:00:08.5]} 39. bxa6 {[%clk 0:00:07.3]} 39... Rac8 {[%clk 0:00:08.7]} 40. Rxc8
{[%clk 0:00:07.3]} 40... Rxc8 {[%clk 0:00:09.6]} 41. Qb1 {[%clk 0:00:07.4]}
41... Qc6 {[%clk 0:00:09]} 42. Qe1 {[%clk 0:00:07.6]} 42... Qc1 {[%clk
0:00:09.4]} 43. Qxc1 {[%clk 0:00:07.6]} 43... Rxc1+ {[%clk 0:00:10.3]} 0-1

[Event "*** SCC Grand Prix: Titled Tuesday Blitz"]
[Site "Chess.com"]
[Date "2020.08.25"]
[Round "1"]
[White "Azoulas1"]
[Black "nickmatta"]
[Result "0-1"]
[WhiteElo "1963"]
[BlackElo "2471"]
[TimeControl "180+1"]
[EndTime "10:07:42 PDT"]
[Termination "nickmatta won on time"]

1. e4 {[%clk 0:03:00.1]} 1... e5 {[%clk 0:02:58.5]} 2. Nf3 {[%clk 0:02:57.3]}
2... Nc6 {[%clk 0:02:57.2]} 3. Bb5 {[%clk 0:02:56.8]} 3... a6 {[%clk 0:02:57.2]}
4. Ba4 {[%clk 0:02:56.6]} 4... Nf6 {[%clk 0:02:57.8]} 5. O-O {[%clk 0:02:55.4]}
5... Be7 {[%clk 0:02:58.4]} 6. Re1 {[%clk 0:02:54.3]} 6... b5 {[%clk 0:02:59]}
7. Bb3 {[%clk 0:02:52.9]} 7... O-O {[%clk 0:02:59.9]} 8. h3 {[%clk 0:02:51]}
8... d6 {[%clk 0:02:54.8]} 9. c3 {[%clk 0:02:49.7]} 9... Bb7 {[%clk 0:02:53.1]}
10. Bc2 {[%clk 0:02:48.3]} 10... Re8 {[%clk 0:02:49.4]} 11. d4 {[%clk
0:02:46.9]} 11... Bf8 {[%clk 0:02:47.6]} 12. Nbd2 {[%clk 0:02:35.2]} 12... g6
{[%clk 0:02:42.2]} 13. Nf1 {[%clk 0:02:34.2]} 13... exd4 {[%clk 0:02:42.6]} 14.
cxd4 {[%clk 0:02:33.1]} 14... Nb4 {[%clk 0:02:43.1]} 15. Ng3 {[%clk 0:02:24.8]}
15... Nxc2 {[%clk 0:02:40.7]} 16. Qxc2 {[%clk 0:02:24.5]} 16... c5 {[%clk
0:02:37.8]} 17. dxc5 {[%clk 0:02:19.5]} 17... dxc5 {[%clk 0:02:36.5]} 18. Bg5
{[%clk 0:02:18.7]} 18... h6 {[%clk 0:02:31.9]} 19. Bf4 {[%clk 0:02:10.3]} 19...
Qb6 {[%clk 0:02:22.3]} 20. Rad1 {[%clk 0:02:07.6]} 20... Rad8 {[%clk 0:02:20.3]}
21. Qc1 {[%clk 0:02:01.8]} 21... Kh7 {[%clk 0:02:16.7]} 22. Qc2 {[%clk 0:01:56]}
22... Rxd1 {[%clk 0:02:12.3]} 23. Rxd1 {[%clk 0:01:54.2]} 23... Nxe4 {[%clk
0:02:11.3]} 24. Ne5 {[%clk 0:01:42.6]} 24... Qf6 {[%clk 0:01:55.8]} 25. Qc1
{[%clk 0:01:11.8]} 25... Rxe5 {[%clk 0:01:31.9]} 26. Bxe5 {[%clk 0:01:09.4]}
26... Qxe5 {[%clk 0:01:32.8]} 27. Nxe4 {[%clk 0:01:04.7]} 27... Qxe4 {[%clk
0:01:32.6]} 28. f3 {[%clk 0:01:04.5]} 28... Qe6 {[%clk 0:01:14.3]} 29. b3 {[%clk
0:00:58.1]} 29... c4 {[%clk 0:01:09.2]} 30. Qd2 {[%clk 0:00:55.1]} 30... cxb3
{[%clk 0:01:00.1]} 31. axb3 {[%clk 0:00:54.2]} 31... Qxb3 {[%clk 0:01:00]} 32.
Qd7 {[%clk 0:00:52.6]} 32... Bc8 {[%clk 0:00:42.1]} 33. Qd8 {[%clk 0:00:48.4]}
33... Be6 {[%clk 0:00:39]} 34. Rd3 {[%clk 0:00:44.5]} 34... Bc5+ {[%clk
0:00:35.2]} 35. Kh2 {[%clk 0:00:42.9]} 35... Qc4 {[%clk 0:00:33.5]} 36. Rd1
{[%clk 0:00:39.6]} 36... a5 {[%clk 0:00:32.2]} 37. Qxa5 {[%clk 0:00:33.5]} 37...
Qf4+ {[%clk 0:00:31.5]} 38. Kh1 {[%clk 0:00:29.2]} 38... Bxh3 {[%clk 0:00:30.9]}
39. Qxb5 {[%clk 0:00:27]} 39... Qg3 {[%clk 0:00:14.6]} 40. Qf1 {[%clk
0:00:25.1]} 40... Be6 {[%clk 0:00:13.3]} 41. Qe1 {[%clk 0:00:07.9]} 41... Bf2
{[%clk 0:00:12.8]} 42. Qe4 {[%clk 0:00:06.3]} 42... h5 {[%clk 0:00:08.6]} 43.
Rd8 {[%clk 0:00:04.1]} 43... Bb6 {[%clk 0:00:06.2]} 44. Rf8 {[%clk 0:00:02.3]}
44... Qe1+ {[%clk 0:00:05.7]} 0-1